bitfinex/quotes_SOLUSD_20240813
["timestamp","ask_amount","ask_price","bid_price","bid_amount"]
[1723513980687,22.0113,147.04,146.98,0.12549]
[1723513980870,31.18,147.07,147.03,5.441]
[1723513981270,21.8411,147.08,147.04,13.6015]
[1723513981271,53.0211,147.08,147.04,13.6015]
[1723513981477,21.8411,147.08,147.05,5.4399]
[1723513981670,15.7674,147.08,147.06,5.4396]
[1723513981896,60.8178,147.12,147.07,5.4395]
[1723513982057,1.69981609,147.11,147.04,13.6015]
[1723513982380,60.8178,147.12,147.04,19.0421]
[1723513982381,5.4389,147.09,147.04,19.0421]
[1723513982564,44.3384,147.1,147.04,19.0421]
[1723513982763,27.3558,147.12,147.04,13.6015]
[1723513982961,27.3558,147.12,147.05,1.35907114]
[1723513983358,27.3558,147.12,147.04,13.6015]
[1723513983359,5.4381,147.11,147.06,5.4399]
[1723513983755,21.9178,147.12,147.06,5.4399]
[1723513983981,38.9,147.11,147.06,5.4399]
[1723513984572,38.9,147.09,147.04,13.6015]
[1723513985462,21.9178,147.12,147.0,19.0466]
[1723513985463,38.9,147.07,147.0,19.0466]
[1723513985661,20.0,147.11,147.0,19.0466]
[1723513985662,44.3403,147.05,147.0,19.0466]
[1723513986165,44.3403,147.05,147.0,13.6045]
[1723513986371,44.3403,147.05,147.0,19.0466]
[1723513986579,38.9,147.05,146.97,13.6081]
[1723513986771,38.9,147.05,146.99,5.4424]
[1723513986772,44.3403,147.05,146.99,5.4424]
[1723513986971,38.9,147.05,147.0,13.6053]
[1723513987776,38.9,147.05,147.0,19.0474]
[1723513988122,44.3413,147.03,146.98,5.4427]
[1723513988384,6.0841,147.04,146.95,27.2192]
[1723513988557,6.0841,147.04,147.02,5.4414]
[1723513988764,6.0841,147.04,147.01,5.4417]
[1723513989487,6.0841,147.04,147.03,5.441]
[1723513989666,6.0841,147.04,147.02,5.4414]
[1723513989867,6.0841,147.04,147.01,5.4417]
[1723513990169,6.0841,147.04,146.96,13.6082]
[1723513990372,38.9,147.01,146.96,13.6082]
[1723513990703,38.9,147.03,146.99,5.4423]
[1723513992362,6.0841,147.04,146.98,13.6064]
[1723513992570,6.0841,147.04,147.01,5.4417]
[1723513992902,6.0841,147.04,147.0,13.6046]
[1723513993871,6.0841,147.04,147.01,5.4417]
[1723513994599,54.983,147.09,147.02,1.35600879]
[1723513994805,6.0655,147.11,147.07,19.0376]
[1723513995681,6.0655,147.11,147.08,5.4391]
[1723513996077,54.983,147.13,147.08,5.4391]
[1723513996313,54.983,147.13,147.09,5.4387]
[1723513998083,44.3381,147.11,147.06,5.4399]
[1723513998291,38.9,147.11,147.04,13.6016]
[1723513998474,38.9,147.11,147.06,5.4399]
[1723513998877,38.9,147.11,147.07,5.4394]
[1723513999101,40.59972419,147.11,147.07,5.4394]
[1723513999409,38.9,147.11,147.07,5.4394]
[1723513999592,44.3381,147.11,147.06,5.4398]
[1723514000193,44.3381,147.11,147.05,5.4403]
[1723514000511,38.9,147.09,147.04,19.0422]
[1723514001010,1.69998278,147.08,147.04,19.0422]
[1723514001215,45.4621,147.09,147.05,5.4402]
[1723514001582,45.4621,147.09,147.05,1.11469606]
[1723514002192,45.4621,147.09,147.04,13.6016]
[1723514002483,45.4621,147.09,147.05,5.4399]
[1723514003117,45.4621,147.09,147.07,5.4393]
[1723514003118,38.9,147.09,147.07,5.4393]
[1723514003275,38.9,147.11,147.05,5.4399]
[1723514003479,38.9,147.09,147.04,13.6016]
[1723514003888,31.13,147.08,147.05,5.4402]
[1723514004811,31.13,147.06,147.01,13.6044]
[1723514005015,47.3659,147.06,147.01,19.0458]
[1723514005187,31.13,147.04,147.01,19.0458]
[1723514005510,31.13,147.04,147.01,13.6044]
[1723514005722,31.13,147.04,147.01,19.0462]
[1723514006008,31.13,147.04,147.01,13.6044]
[1723514006177,22.6386,147.06,147.05,5.4403]
[1723514006393,16.2359,147.06,147.05,5.4403]
[1723514007210,16.2359,147.06,147.04,13.6017]
[1723514007518,31.13,147.08,147.06,5.4399]
[1723514007698,15.5241,147.09,147.06,5.4399]
[1723514008077,15.5241,147.09,147.05,5.4402]
[1723514010525,15.5241,147.09,147.04,13.6017]
[1723514010688,15.5241,147.09,147.06,5.4396]
[1723514011224,1.69990774,147.08,147.05,5.4402]
[1723514011394,15.5241,147.09,147.05,1.35996281]
[1723514011595,15.5241,147.09,147.04,13.6017]
[1723514011916,15.5241,147.09,147.07,5.4393]
[1723514012109,15.5241,147.09,147.05,5.44]
[1723514012296,15.5241,147.09,147.04,13.6017]
[1723514012504,20.9631,147.09,147.04,13.6017]
[1723514012811,15.5241,147.09,147.04,13.6017]
[1723514013420,15.5241,147.09,147.05,5.4402]
[1723514013590,15.5241,147.09,147.06,5.4397]
[1723514013790,38.91,147.11,147.07,13.5986]
[1723514013998,21.7921,147.13,147.07,13.5986]
[1723514014233,21.7921,147.13,147.08,1.35970012]
[1723514014904,21.7921,147.13,147.1,5.4384]
[1723514015601,21.7921,147.13,147.11,5.438]
[1723514015820,38.91,147.16,147.11,5.438]
[1723514016123,44.3464,147.16,147.11,5.438]
[1723514016291,5.4367,147.15,147.1,19.0345]
[1723514016636,44.3462,147.16,147.1,19.0343]
[1723514019199,5.4366,147.15,147.1,19.0343]
[1723514019812,21.8456,147.22,147.13,13.5931]
[1723514020026,38.91,147.21,147.13,19.0301]
[1723514020393,5.4351,147.19,147.14,5.4369]
[1723514020820,5.4348,147.2,147.14,5.4369]
[1723514021197,38.91,147.21,147.13,13.5931]
[1723514021429,38.91,147.21,147.11,27.1903]
[1723514021430,38.91,147.21,147.17,5.4358]
[1723514021724,38.91,147.21,147.15,13.5906]
[1723514022297,38.91,147.21,147.16,1.35838741]
[1723514022604,38.91,147.21,147.15,13.5906]
[1723514022808,44.3444,147.21,147.15,19.0271]
[1723514024031,44.3444,147.21,147.16,5.4362]
[1723514025027,38.91,147.21,147.16,5.4362]
[1723514025225,38.91,147.21,147.15,13.5906]
[1723514025426,5.4351,147.19,147.14,5.4366]
[1723514025634,38.91,147.21,147.15,5.4366]
[1723514025635,5.4348,147.2,147.15,5.4366]
[1723514026338,44.3444,147.21,147.16,5.4362]
[1723514026537,45.0,147.2,147.16,5.4362]
[1723514026699,50.4349,147.2,147.12,13.5943]
[1723514026898,38.91,147.18,147.12,13.5943]
[1723514027216,38.91,147.18,147.14,5.4369]
[1723514027819,1.698977,147.17,147.14,5.4369]
[1723514028017,38.91,147.18,147.14,5.4369]
[1723514028436,40.60897707,147.18,147.13,5.4373]
[1723514028611,1.69897707,147.17,147.13,5.4373]
[1723514028807,38.91,147.16,147.12,19.032]
[1723514029011,38.91,147.16,147.12,13.5943]
[1723514030010,31.09,147.18,147.12,13.5943]
[1723514030524,31.09,147.18,147.14,5.4366]
[1723514030723,31.09,147.18,147.06,77.346]
[1723514030724,31.09,147.2,147.16,5.4361]
[1723514031212,31.09,147.2,147.17,5.4357]
[1723514031732,31.09,147.2,147.16,5.4362]
[1723514032230,31.09,147.2,147.15,13.5915]
[1723514032437,31.09,147.18,147.13,5.4371]
[1723514032935,1.69902861,147.17,147.13,5.4371]
[1723514033109,31.09,147.18,147.13,5.4371]
[1723514033418,31.09,147.18,147.14,5.4368]
[1723514033628,1.69902842,147.17,147.13,5.4373]
[1723514034744,31.09,147.18,147.13,5.4373]
[1723514035811,32.78902877,147.18,147.14,5.4368]
[1723514036015,31.09,147.18,147.14,5.4368]
[1723514037032,31.09,147.18,147.12,13.5942]
[1723514037328,31.09,147.18,147.13,5.437]
[1723514037546,31.09,147.18,147.14,5.4368]
[1723514038507,36.5256,147.18,147.12,19.0316]
[1723514038703,31.09,147.16,147.12,19.0316]
[1723514039122,31.09,147.16,147.13,5.4372]
[1723514039840,31.09,147.16,147.14,5.4369]
[1723514040539,31.09,147.16,147.12,13.5942]
[1723514040725,31.09,147.18,147.14,5.4366]
[1723514041121,31.09,147.18,147.15,5.4365]
[1723514041325,31.09,147.2,147.15,13.5913]
[1723514041532,31.09,147.2,147.16,5.4359]
[1723514042229,31.09,147.2,147.15,13.5913]
[1723514042230,1.69882326,147.19,147.15,19.0278]
[1723514042430,36.5248,147.2,147.15,19.0278]
[1723514043333,31.09,147.2,147.15,13.5913]
[1723514043660,36.5255,147.18,147.13,5.4372]
[1723514043866,31.09,147.18,147.14,13.5923]
[1723514045037,52.9356,147.22,147.16,13.5898]
[1723514045262,52.9356,147.22,147.17,1.35833058]
[1723514045769,52.9356,147.22,147.18,5.4353]
[1723514049142,52.9356,147.22,147.19,5.4351]
[1723514049143,15.3974,147.22,147.19,5.4351]
[1723514049730,15.3974,147.22,147.18,5.4354]
[1723514050957,15.3974,147.22,147.19,5.4351]
[1723514051246,36.5233,147.24,147.19,5.4351]
[1723514052153,36.5233,147.24,147.16,13.5898]
[1723514052154,7.13197945,147.23,147.18,5.4355]
[1723514052524,7.13197945,147.23,147.16,13.5898]
[1723514052525,36.524,147.22,147.17,5.4358]
[1723514053150,31.09,147.22,147.18,5.4353]
[1723514053660,36.524,147.22,147.17,5.4358]
[1723514055027,36.5248,147.2,147.16,13.5898]
[1723514055923,12.43,147.18,147.16,13.5898]
[1723514056125,12.43,147.18,147.13,13.5933]
[1723514056320,12.43,147.16,147.13,13.5933]
[1723514057760,12.43,147.16,147.12,5.4377]
[1723514057930,12.43,147.16,147.08,15.2604]
[1723514057931,36.5362,147.16,147.1,19.0341]
[1723514058148,36.5362,147.16,147.1,13.596]
[1723514058352,31.1,147.16,147.1,13.596]
[1723514059031,31.1,147.14,147.1,13.596]
[1723514059252,31.1,147.14,147.1,19.0343]
[1723514059667,31.1,147.14,147.11,5.4379]
[1723514060530,31.1,147.14,147.12,5.4377]
[1723514060765,31.1,147.16,147.12,5.4377]
[1723514061930,36.5363,147.16,147.1,19.0341]
[1723514062132,24.55812577,147.19,147.1,13.596]
[1723514062133,31.1,147.14,147.1,13.596]
[1723514062337,31.1,147.14,147.1,19.0342]
[1723514063539,31.1,147.14,147.11,5.438]
[1723514063936,31.1,147.16,147.12,5.4374]
[1723514064861,36.5363,147.16,147.11,5.4381]
[1723514065068,5.4366,147.15,147.1,19.0344]
[1723514065747,38.23634342,147.14,147.06,40.7973]
[1723514065950,36.537,147.14,147.08,5.4389]
[1723514066149,36.537,147.14,147.09,5.4386]
[1723514066561,5.4366,147.15,147.1,5.4384]
[1723514066868,31.1,147.15,147.11,5.438]
[1723514069349,36.5366,147.15,147.1,19.0338]
[1723514069683,31.1,147.11,147.01,6.0656]
[1723514069861,31.1,147.09,147.03,13.6017]
[1723514070051,31.1,147.09,147.04,5.4406]
[1723514070579,31.1,147.09,147.05,5.4401]
[1723514070954,31.1,147.09,147.06,5.4399]
[1723514071286,31.1,147.07,147.04,5.4406]
[1723514071448,31.1,147.11,147.08,5.4392]
[1723514071652,6.1578,147.12,147.08,5.4392]
[1723514071881,6.1578,147.12,147.09,5.4387]
[1723514072261,6.1578,147.12,147.08,5.4391]
[1723514072576,16.5909,147.13,147.09,1.35972352]
[1723514072757,16.5909,147.13,147.08,13.5972]
[1723514073169,6.1578,147.16,147.1,13.5954]
[1723514073377,6.1578,147.16,147.11,5.4377]
[1723514073775,6.1578,147.16,147.11,1.35945462]
[1723514074075,16.5909,147.17,147.14,5.4369]
[1723514074282,16.5909,147.17,147.12,13.5935]
[1723514074459,22.0268,147.17,147.12,19.0311]
[1723514074878,16.5909,147.17,147.12,13.5935]
[1723514075187,31.1,147.19,147.14,5.4366]
[1723514075681,52.4647,147.21,147.15,13.5912]
[1723514075889,52.4647,147.21,147.16,5.4359]
[1723514076054,57.8991,147.21,147.15,13.5912]
[1723514076252,21.3647,147.21,147.15,13.5912]
[1723514076516,57.8992,147.21,147.15,13.5912]
[1723514076790,52.4647,147.21,147.16,5.4361]
[1723514076966,1.69876521,147.2,147.15,13.5912]
[1723514077167,7.13356521,147.2,147.15,19.0278]
[1723514077596,36.5352,147.19,147.13,5.437]
[1723514079592,36.5352,147.19,147.14,5.4368]
[1723514080298,31.1,147.19,147.14,5.4368]
[1723514081384,31.1,147.19,147.14,13.5924]
[1723514081563,52.4647,147.21,147.16,5.4362]
[1723514081993,52.4647,147.21,147.17,13.5895]
[1723514082598,52.4647,147.21,147.14,5.4367]
[1723514082599,7.13335128,147.2,147.14,5.4367]
[1723514082805,7.13335128,147.2,147.15,5.56209]
[1723514084286,7.13335128,147.2,147.15,5.4366]
[1723514084786,5.4348,147.2,147.15,5.4366]
[1723514086131,7.13357183,147.2,147.15,5.4366]
[1723514086280,38.23357183,147.2,147.15,5.4366]
[1723514087107,31.1,147.2,147.16,5.4362]
[1723514087498,31.1,147.2,147.17,5.4358]
[1723514087902,21.3647,147.21,147.17,5.4358]
[1723514089188,31.1,147.2,147.16,5.4362]
[1723514089394,31.1,147.2,147.17,5.4358]
[1723514089596,21.3647,147.21,147.17,5.4358]
[1723514089796,23.06319644,147.21,147.17,5.4358]
[1723514090218,23.06324325,147.21,147.17,5.4358]
[1723514090516,21.3647,147.21,147.17,5.4358]
[1723514092208,15.2069,147.21,147.18,5.4354]
[1723514092618,36.5333,147.24,147.19,5.4351]
[1723514093293,31.1,147.24,147.2,5.4347]
[1723514095729,21.7693,147.25,147.21,1.35855688]
[1723514096097,21.7693,147.25,147.21,6.79285688]
[1723514096292,21.7693,147.25,147.21,14.94375688]
[1723514096492,21.7693,147.25,147.21,13.5852]
[1723514097012,21.7693,147.25,147.22,5.434]
[1723514097223,21.7693,147.25,147.21,19.0195]
[1723514097712,21.7693,147.25,147.16,0.12549]
[1723514097933,21.7693,147.25,147.21,5.4343]
[1723514098713,21.7693,147.25,147.19,13.587]
[1723514098714,21.7693,147.25,147.2,5.4347]
[1723514098921,27.2022,147.25,147.2,5.4347]
[1723514099133,28.90033088,147.25,147.2,5.4347]
[1723514099332,27.2022,147.25,147.2,5.4347]
[1723514099625,21.7693,147.25,147.21,5.4342]
[1723514099998,12.42,147.25,147.22,6.79213193]
[1723514100400,21.8779108,147.28,147.24,5.4333]
[1723514100401,12.42,147.27,147.24,5.4333]
[1723514100621,12.42,147.25,147.22,13.585]
[1723514100833,12.42,147.25,147.22,19.0187]
[1723514101064,12.42,147.25,147.22,13.585]
[1723514101900,34.2981108,147.28,147.22,13.585]
[1723514102102,12.42,147.26,147.22,19.019]
[1723514102325,12.42,147.24,147.22,13.585]
[1723514106912,12.42,147.24,147.22,19.0189]
[1723514107535,12.42,147.24,147.2,5.4344]
[1723514107916,12.42,147.24,147.21,5.4342]
[1723514108121,12.42,147.24,147.22,5.4339]
[1723514108418,12.42,147.24,147.19,13.5878]
[1723514108628,12.42,147.2,147.19,13.5878]
[1723514109874,12.42,147.2,147.09,2.76061542]
[1723514109875,12.42,147.2,147.17,5.4358]
[1723514110047,12.42,147.2,147.1,283.9944]
[1723514110379,16.3202,147.21,147.2,5.4347]
[1723514110743,12.42,147.22,147.21,5.4344]
[1723514110949,12.42,147.22,147.18,13.5887]
[1723514111148,12.42,147.22,147.19,0.12549]
[1723514111759,15.564,147.25,147.2,13.586]
[1723514111760,12.42,147.24,147.2,13.586]
[1723514112267,12.42,147.24,147.2,19.0207]
[1723514112471,12.42,147.22,147.2,19.0207]
[1723514113556,12.42,147.22,147.21,5.4344]
[1723514113749,15.564,147.25,147.22,5.434]
[1723514114077,27.984,147.25,147.23,5.4336]
[1723514114648,12.42,147.25,147.23,5.4336]
[1723514115179,12.42,147.25,147.21,5.434]
[1723514115481,12.42,147.23,147.2,13.586]
[1723514115669,12.42,147.23,147.2,19.0207]
[1723514115982,12.42,147.21,147.18,5.4353]
[1723514116661,12.42,147.19,147.17,13.5895]
[1723514117577,12.42,147.19,147.14,13.5923]
[1723514117950,12.42,147.19,147.12,16.4868]
[1723514117951,12.42,147.21,147.18,5.4355]
[1723514119183,12.42,147.19,147.17,19.0253]
[1723514119349,12.42,147.19,147.18,5.4355]
[1723514120172,12.42,147.19,147.17,13.5895]
[1723514121275,12.42,147.19,147.15,5.4366]
[1723514121585,12.42,147.17,147.15,5.4366]
[1723514121891,12.42,147.17,147.14,19.0293]
[1723514122188,12.42,147.15,147.11,5.4377]
[1723514122359,12.42,147.13,147.1,13.5954]
[1723514123662,12.42,147.13,147.1,19.0335]
[1723514123870,20.8018,147.16,147.11,1.35943605]
[1723514123871,12.42,147.15,147.11,1.35943605]
[1723514124264,12.42,147.15,147.13,13.5932]
[1723514124580,15.3656,147.16,147.13,13.5932]
[1723514124767,15.3656,147.16,147.14,5.4369]
[1723514125080,15.3656,147.16,147.13,19.0303]
[1723514125300,12.42,147.15,147.09,13.5961]
[1723514125768,12.42,147.15,147.12,5.4377]
[1723514126369,12.42,147.15,147.11,5.438]
[1723514126887,12.42,147.15,147.12,5.4376]
[1723514130789,27.7856,147.16,147.12,13.594]
[1723514131174,12.42,147.16,147.15,13.5915]
[1723514131382,12.42,147.19,147.15,13.5915]
[1723514131588,12.42,147.19,147.16,5.4359]
[1723514132278,12.42,147.19,147.15,13.5915]
[1723514132477,25.18547961,147.24,147.2,13.5864]
[1723514132705,12.42,147.23,147.21,5.4344]
[1723514132888,12.42,147.23,147.2,19.0211]
[1723514133198,12.42,147.21,147.17,13.5895]
[1723514133369,12.42,147.21,147.18,5.4355]
[1723514133576,12.42,147.21,147.19,5.4351]
[1723514134093,31.07,147.23,147.19,5.4351]
[1723514135995,31.07,147.23,147.17,13.5895]
[1723514136327,31.07,147.21,147.17,13.5895]
[1723514136501,1.69865861,147.2,147.17,13.5895]
[1723514136709,31.07,147.21,147.17,13.5895]
[1723514137221,31.07,147.21,147.17,19.0253]
[1723514139209,27.9856,147.24,147.17,13.5895]
[1723514139415,31.07,147.23,147.17,13.5895]
[1723514139581,31.07,147.23,147.17,19.025]
[1723514139787,31.07,147.23,147.17,13.5895]
[1723514140187,31.07,147.23,147.19,5.4351]
[1723514141214,1.69845359,147.22,147.18,5.4355]
[1723514141417,31.07,147.23,147.19,5.4351]
[1723514142113,1.69845237,147.22,147.19,5.4351]
[1723514142413,31.07,147.23,147.19,5.4351]
[1723514143219,31.07,147.23,147.18,5.4354]
[1723514143220,1.69845306,147.22,147.18,5.4354]
[1723514144021,31.07,147.23,147.18,5.4354]
[1723514144399,31.07,147.21,147.17,13.5895]
[1723514144914,1.69862367,147.2,147.17,13.5895]
[1723514145112,31.07,147.21,147.17,19.0251]
[1723514145490,31.07,147.21,147.18,5.4352]
[1723514146015,31.07,147.21,147.17,19.0253]
[1723514147719,31.07,147.19,147.13,13.5925]
[1723514148020,31.07,147.19,147.15,5.4365]
[1723514148188,31.07,147.17,147.13,13.5925]
[1723514148623,31.07,147.17,147.13,19.0296]
[1723514149088,31.07,147.21,147.13,13.5925]
[1723514149293,31.07,147.21,147.15,5.4365]
[1723514149491,31.07,147.21,147.16,5.436]
[1723514151392,36.5046,147.21,147.16,5.436]
[1723514151597,36.5046,147.21,147.13,13.5925]
[1723514151598,36.5046,147.21,147.15,5.4365]
[1723514152529,5.4349,147.2,147.15,5.4365]
[1723514153720,1.69890452,147.19,147.15,5.4365]
[1723514154024,31.07,147.17,147.13,13.5925]
[1723514154327,31.07,147.17,147.07,27.1964]
[1723514154328,1.6991721,147.16,147.12,5.4376]
[1723514154554,36.5059,147.17,147.12,5.4376]
[1723514157702,1.69929516,147.16,147.11,5.438]
[1723514157896,36.5059,147.17,147.12,5.4375]
[1723514158323,7.13549179,147.16,147.11,5.438]
[1723514158497,38.20604903,147.15,147.1,19.0343]
[1723514158714,1.69948768,147.14,147.1,19.0343]
[1723514158998,36.5067,147.15,147.1,19.0343]
[1723514159210,31.07,147.15,147.1,13.5959]
[1723514160538,31.07,147.13,147.1,13.5959]
[1723514161217,31.07,147.13,147.1,19.0343]
[1723514161744,5.438,147.12,147.07,13.5988]
[1723514161926,31.07,147.13,147.07,13.5988]
[1723514162142,31.07,147.15,147.09,13.5964]
[1723514162318,22.0122,147.16,147.13,5.437]
[1723514162913,22.0122,147.16,147.12,19.0318]
[1723514165224,31.07,147.15,147.11,5.438]
[1723514165424,31.07,147.15,147.09,19.0353]
[1723514165650,31.07,147.15,147.1,5.4382]
[1723514165948,36.5067,147.15,147.1,5.4382]
[1723514166517,31.07,147.15,147.1,5.4382]
[1723514166825,31.07,147.15,147.11,5.4379]
[1723514168022,27.4485,147.16,147.05,13.6003]
[1723514168023,31.07,147.13,147.05,13.6003]
[1723514168259,32.76936641,147.14,147.09,5.4388]
[1723514168260,31.07,147.11,147.09,5.4388]
[1723514168544,31.07,147.13,147.09,5.4388]
[1723514170118,76.07,147.15,147.1,5.4383]
[1723514170313,31.07,147.15,147.11,5.4379]
[1723514170542,31.07,147.15,147.09,13.5964]
[1723514171246,5.4373,147.13,147.09,13.5964]
[1723514171541,5.4378,147.12,147.07,5.4394]
[1723514171756,31.07,147.13,147.08,5.4391]
[1723514172652,5.4379,147.12,147.06,5.4396]
[1723514172823,31.07,147.11,147.07,5.4394]
[1723514173030,36.5074,147.13,147.08,5.4391]
[1723514174750,31.07,147.13,147.09,5.4387]
[1723514179932,12.45,147.12,147.09,5.4387]
[1723514181935,12.45,147.12,147.08,13.5979]
[1723514182338,12.45,147.12,147.08,19.037]
[1723514183835,12.45,147.1,147.08,13.5979]
[1723514184033,12.45,147.1,147.07,5.4395]
[1723514189572,12.45,147.08,147.03,13.6025]
[1723514191055,12.45,147.06,147.04,5.4406]
[1723514191365,16.4687,147.11,147.04,27.2024]
[1723514191543,6.3128,147.14,147.05,20.0]
[1723514191743,18.7628,147.14,147.1,5.4381]
[1723514191950,6.3128,147.14,147.11,5.4379]
[1723514192268,12.45,147.13,147.11,5.4379]
[1723514192483,12.45,147.13,147.1,5.4383]
[1723514193058,6.3128,147.14,147.09,13.5971]
[1723514193245,6.3128,147.14,147.11,5.4379]
[1723514193447,6.3128,147.14,147.12,5.4376]
[1723514193645,6.3128,147.14,147.11,5.438]
[1723514194053,6.3128,147.14,147.04,27.2024]
[1723514194054,0.12549,147.12,147.0,34.3044973]
[1723514194268,12.45,147.07,147.03,5.4408]
[1723514194439,12.45,147.07,147.01,13.6036]
[1723514194648,12.45,147.07,147.05,5.4403]
[1723514194842,28.9187,147.09,147.05,5.4403]
[1723514195166,28.9187,147.09,147.04,13.6016]
[1723514195167,16.4687,147.09,147.07,5.4395]
[1723514195351,16.4687,147.09,147.06,5.4399]
[1723514196267,16.4687,147.09,147.05,5.4402]
[1723514196655,12.45,147.08,147.05,5.4402]
[1723514197592,16.4687,147.09,147.05,5.4402]
[1723514197795,28.9187,147.09,147.05,5.4402]
[1723514198086,28.9187,147.09,147.04,13.6016]
[1723514198299,28.9187,147.09,147.04,19.0419]
[1723514198793,12.45,147.07,147.04,19.0419]
[1723514199101,12.45,147.05,147.0,13.6046]
[1723514199400,6.14319,147.08,147.03,13.6026]
[1723514199401,12.45,147.07,147.03,13.6026]
[1723514199595,6.0177,147.08,147.05,5.4402]
[1723514199771,6.0177,147.08,147.06,5.4399]
[1723514200089,6.0177,147.08,147.05,5.4402]
[1723514202277,6.0177,147.08,147.06,13.5994]
[1723514202675,6.0177,147.08,147.07,5.4395]
[1723514204165,6.0177,147.08,147.06,19.0393]
[1723514204579,6.0177,147.08,147.06,13.5994]
[1723514206077,6.0177,147.08,147.04,5.4404]
[1723514206480,6.0177,147.08,147.05,5.4401]
[1723514208188,6.0177,147.08,147.06,5.4399]
[1723514208395,6.0177,147.08,147.05,5.4403]
[1723514209101,6.0177,147.08,147.04,5.4406]
[1723514209891,6.0177,147.08,147.05,5.4402]
[1723514210090,6.0177,147.08,147.06,5.4399]
[1723514210403,6.0177,147.08,147.07,5.4395]
[1723514210701,6.0177,147.08,147.06,19.0396]
[1723514211068,6.0177,147.08,147.06,13.5997]
[1723514212191,6.0177,147.08,147.06,19.0394]
[1723514216512,6.0177,147.08,147.03,13.6026]
[1723514217588,6.0177,147.08,147.05,5.4401]
[1723514219300,6.0177,147.08,147.06,5.4399]
[1723514221218,6.0177,147.08,147.03,19.0433]
[1723514221383,57.45,147.07,147.03,19.0433]
[1723514222215,57.45,147.07,147.01,20.0]
[1723514222216,12.45,147.05,147.01,20.0]
[1723514222697,12.45,147.07,147.04,5.4406]
[1723514223825,12.45,147.07,147.01,20.0]
[1723514223826,15.8182,147.04,147.01,20.0]
[1723514223996,15.8182,147.04,146.99,20.0]
[1723514224315,15.8182,147.04,146.97,27.215]
[1723514224316,15.8182,147.04,147.03,5.441]
[1723514224624,15.8182,147.04,147.01,13.6041]
[1723514224834,15.8182,147.04,147.03,5.441]
[1723514225133,12.45,147.07,147.05,5.4403]
[1723514225412,45.0,147.06,147.01,13.6041]
[1723514225618,45.0,147.06,147.02,20.0]
[1723514225619,12.45,147.05,147.02,20.0]
[1723514225920,15.0716,147.04,147.02,20.0]
[1723514226293,21.7372,147.08,147.07,5.4395]
[1723514226697,21.7372,147.08,147.05,5.4401]
[1723514227430,14.15020787,147.07,147.04,13.6015]
[1723514227727,12.45,147.05,147.02,20.0]
[1723514228023,12.45,147.05,147.01,20.0]
[1723514228395,12.45,147.05,147.02,5.4414]
[1723514228625,34.31269,147.08,147.03,13.6025]
[1723514228912,34.31269,147.08,147.06,13.5997]
[1723514228913,21.7372,147.08,147.06,13.5997]
[1723514229120,34.1872,147.08,147.02,13.6032]
[1723514229502,34.1872,147.08,147.06,5.4398]
[1723514229917,34.1872,147.08,147.05,13.6005]
[1723514230222,21.7372,147.08,147.07,5.4395]